bitfinex-derivatives/quotes_ETHF0:USTF0_20241026
["timestamp","ask_amount","ask_price","bid_price","bid_amount"]
[1729951647909,3.09546642,2467.6,2466.8,3.2078]
[1729951647910,9.01957425,2467.6,2466.8,3.2078]
[1729951648218,0.40579,2466.9,2466.8,0.8176]
[1729951648705,0.8805,2466.9,2466.8,0.8176]
[1729951649315,0.8805,2466.9,2466.8,0.4118]
[1729951649619,1.28629,2466.9,2466.8,0.4118]
[1729951649814,0.8805,2466.9,2466.7,2.61728425]
[1729951650011,0.4058,2466.8,2466.7,2.61728425]
[1729951650412,0.4058,2466.8,2466.7,2.16618425]
[1729951650816,2.60157425,2466.9,2466.7,1.76037425]
[1729951651218,0.4058,2466.8,2466.7,2.16618425]
[1729951651417,2.19577425,2466.9,2466.7,1.76037425]
[1729951651621,2.60157425,2466.9,2466.8,0.4058]
[1729951652126,0.4058,2466.8,2466.7,2.16618425]
[1729951653519,2.19577425,2466.9,2466.8,0.4058]
[1729951653520,2.60157425,2466.9,2466.8,0.4058]
[1729951653714,0.4058,2466.8,2466.7,2.16617425]
[1729951654326,2.60157425,2466.9,2466.8,0.4058]
[1729951654620,2.19577425,2466.9,2466.7,1.76037425]
[1729951654825,0.4058,2466.8,2466.7,2.16618425]
[1729951656013,2.60157425,2466.9,2466.8,0.4058]
[1729951656218,2.13604425,2467.1,2467.0,0.40577]
[1729951656418,0.415,2467.1,2467.0,1.72104425]
[1729951657710,0.82075,2467.1,2467.0,1.72104425]
[1729951657916,0.415,2467.1,2467.0,1.72104425]
[1729951658826,0.82075,2467.1,2467.0,1.72104425]
[1729951659020,2.13602425,2467.1,2467.0,1.72104425]
[1729951659224,0.415,2467.1,2467.0,1.72104425]
[1729951660326,0.82075,2467.1,2467.0,1.72104425]
[1729951661324,0.40575,2467.1,2467.0,1.72104425]
[1729951662520,0.40575,2467.1,2467.0,0.40577]
[1729951662521,1.72102425,2467.1,2467.0,0.40577]
[1729951663425,1.31527425,2467.1,2467.0,0.40577]
[1729951663616,1.72103425,2467.1,2467.0,0.40577]
[1729951663816,1.31527425,2467.1,2467.0,0.40577]
[1729951664323,1.72102425,2467.1,2467.0,0.40577]
[1729951664525,1.31527425,2467.1,2467.0,0.40577]
[1729951665024,1.72102425,2467.1,2467.0,0.40577]
[1729951667620,1.31527425,2467.1,2467.0,0.40577]
[1729951668021,1.72102425,2467.1,2467.0,0.40577]
[1729951671622,1.31527425,2467.1,2467.0,0.40577]
[1729951671828,1.72102425,2467.1,2467.0,0.40577]
[1729951672329,1.31527425,2467.1,2467.0,0.40577]
[1729951672524,1.72102425,2467.1,2467.0,0.40577]
[1729951674731,3.09357313,2467.3,2467.0,1.31527425]
[1729951675035,0.40575,2467.2,2467.1,0.84205]
[1729951675335,1.72102425,2467.2,2467.1,0.84205]
[1729951675830,1.31527425,2467.2,2467.1,0.84205]
[1729951676035,1.72101425,2467.2,2467.1,0.84205]
[1729951677231,3.49930313,2467.3,2467.1,0.4363]
[1729951677440,0.84992,2467.3,2467.2,0.40574]
[1729951677734,0.84992,2467.3,2467.2,0.84104]
[1729951678430,4.83414738,2467.4,2467.2,0.4353]
[1729951678431,2.64937313,2467.4,2467.2,0.4353]
[1729951678628,3.96464738,2467.5,2467.2,1.75057425]
[1729951678828,4.37034738,2467.5,2467.4,0.40571]
[1729951679631,0.40571,2467.4,2467.3,0.83661]
[1729951680629,1.72098425,2467.4,2467.3,0.83661]
[1729951681729,1.31527425,2467.4,2467.3,0.83661]
[1729951682330,1.31527425,2467.5,2467.4,0.40571]
[1729951682732,1.72096425,2467.5,2467.4,1.31527425]
[1729951682933,1.72096425,2467.5,2467.3,0.4309]
[1729951683132,1.72096425,2467.5,2467.4,0.40571]
[1729951683841,0.40576,2467.1,2467.0,0.40576]
[1729951684043,1.72103425,2467.1,2467.0,0.40576]
[1729951684246,0.40577,2467.0,2466.9,1.72104425]
[1729951684431,0.85337,2467.0,2466.9,1.72104425]
[1729951684631,0.4058,2466.8,2466.7,1.2819]
[1729951684831,0.4058,2466.8,2466.7,0.4155]
[1729951684832,1.72107425,2466.8,2466.7,0.4155]
[1729951685037,0.40585,2466.5,2466.4,5.37553425]
[1729951685237,1.72110425,2466.7,2466.4,4.96967425]
[1729951685441,1.72110425,2466.7,2466.5,1.72112425]
[1729951685647,0.4476,2466.6,2466.5,1.72112425]
[1729951687146,0.85344,2466.6,2466.5,1.72112425]
[1729951688046,0.4476,2466.6,2466.5,1.72112425]
[1729951689548,0.85344,2466.6,2466.5,1.72112425]
[1729951690151,0.85344,2466.6,2466.5,1.31527425]
[1729951690349,0.4476,2466.6,2466.4,4.52307425]
[1729951690654,0.4476,2466.6,2466.4,1.72114425]
[1729951690655,0.83035,2466.5,2466.4,1.72114425]
[1729951690848,0.83035,2466.5,2466.4,1.31527425]
[1729951691955,0.83035,2466.5,2466.4,1.72114425]
[1729951693054,0.83035,2466.5,2466.4,1.31527425]
[1729951693256,0.8456,2466.5,2466.3,2.13665425]
[1729951693554,0.40587,2466.4,2466.3,2.13665425]
[1729951694057,1.25146,2466.5,2466.3,2.13665425]
[1729951694252,1.25146,2466.5,2466.4,1.31527425]
[1729951694756,0.40587,2466.4,2466.3,0.82138]
[1729951694953,2.56673425,2466.5,2466.4,1.31527425]
[1729951696356,2.56673425,2466.5,2466.4,1.72114425]
[1729951696858,2.56673425,2466.5,2466.4,1.31527425]
[1729951697768,0.4059,2466.2,2466.1,4.92898425]
[1729951698067,1.72117425,2466.2,2466.1,3.2078]
[1729951699248,1.31527425,2466.2,2466.0,0.40593]
[1729951699460,2.98879425,2466.1,2466.0,0.40593]
[1729951699663,2.98879425,2466.1,2465.9,1.76577425]
[1729951699664,0.40594,2466.0,2465.9,0.85644]
[1729951699854,1.31527425,2466.0,2465.9,0.85644]
[1729951700253,2.98880425,2466.1,2465.9,2.17171425]
[1729951701054,2.98880425,2466.1,2466.0,0.40594]
[1729951701359,2.98880425,2466.1,2465.9,1.76577425]
[1729951701556,2.98880425,2466.1,2465.9,2.17171425]
[1729951701755,2.58287425,2466.1,2465.9,2.17171425]
[1729951701955,0.40594,2466.0,2465.9,2.17171425]
[1729951703161,2.98880425,2466.1,2466.0,0.40594]
[1729951704764,2.58287425,2466.1,2466.0,0.40594]
[1729951704963,0.8484,2466.1,2466.0,1.72121425]
[1729951705261,0.4059,2466.2,2466.1,0.40591]
[1729951705461,2.63347425,2466.3,2466.0,1.31527425]
[1729951705657,0.40592,2466.1,2466.0,1.72119425]
[1729951705856,1.72119425,2466.1,2466.0,1.72119425]
[1729951706163,0.40592,2466.1,2466.0,1.72119425]
[1729951706363,1.31527425,2466.1,2465.9,4.97357425]
[1729951706567,0.40594,2466.0,2465.9,5.37951425]
[1729951711667,0.40594,2466.0,2465.9,4.06425]
[1729951711869,0.84534,2466.0,2465.9,4.06425]
[1729951712766,0.84534,2466.0,2465.9,0.85645]
[1729951714967,0.4394,2466.0,2465.9,2.17172425]
[1729951715562,0.8724,2466.3,2465.9,1.76577425]
[1729951715868,0.4059,2466.3,2466.2,0.40589]
[1729951716072,1.72117425,2466.3,2466.2,0.40589]
[1729951716369,1.72117425,2466.3,2466.2,0.84599]
[1729951716574,1.31527425,2466.3,2466.2,0.84599]
[1729951716970,1.31527425,2466.3,2466.2,1.71839]
[1729951717173,1.72116425,2466.3,2466.2,1.71839]
[1729951717880,1.31527425,2466.3,2466.2,1.71839]
[1729951718173,1.72116425,2466.3,2466.2,1.71839]
[1729951718966,1.3099,2466.4,2466.2,1.3125]
[1729951719174,3.03105425,2466.4,2466.3,0.40589]
[1729951720272,2.62517425,2466.4,2466.2,1.3125]
[1729951720473,2.62517425,2466.4,2466.2,1.7184]
[1729951720474,1.72116425,2466.3,2466.2,1.7184]
[1729951722573,1.72116425,2466.3,2466.2,0.846]
[1729951723177,1.72116425,2466.3,2465.9,3.61375]
[1729951723178,0.40594,2466.0,2465.9,3.61375]
[1729951723375,1.72121425,2466.0,2465.9,4.04215]
[1729951724474,1.31527425,2466.0,2465.9,3.6362]
[1729951724670,1.31527425,2466.0,2465.9,4.04215]
[1729951725175,1.72121425,2466.0,2465.9,4.04215]
[1729951727074,1.72121425,2466.0,2465.9,0.83435]
[1729951730174,1.31527425,2466.0,2465.9,0.83435]
[1729951730675,1.31527425,2466.1,2466.0,0.40594]
[1729951730877,1.31527425,2466.1,2466.0,1.72121425]
[1729951738484,1.72287425,2466.1,2466.0,1.72121425]
[1729951740785,2.12879425,2466.1,2466.0,0.40594]
[1729951740992,0.40594,2466.0,2465.9,0.4284]
[1729951741183,1.72121425,2466.0,2465.9,0.4284]
[1729951741382,2.54001425,2466.0,2465.9,0.4284]
[1729951741584,5.17763336,2466.0,2465.9,0.4284]
[1729951742180,5.17763336,2466.0,2465.9,0.83435]
[1729951742387,5.17763336,2466.0,2465.9,0.4284]
[1729951742695,5.17763336,2466.0,2465.9,0.83435]
[1729951743588,2.54001425,2466.0,2465.9,0.83435]
[1729951743886,5.1854865,2466.0,2465.9,0.4284]
[1729951744085,2.54001425,2466.0,2465.9,0.4284]
[1729951744287,2.54001425,2466.0,2465.9,0.83435]
[1729951744693,5.18550852,2466.0,2465.9,0.83435]
[1729951745289,2.54001425,2466.0,2465.9,0.83435]
[1729951745486,5.18618645,2466.0,2465.9,0.83435]
[1729951745697,3.8709122,2466.0,2465.9,2.14962425]
[1729951748291,3.8709122,2466.0,2465.9,0.83435]
[1729951749194,2.6461722,2466.0,2465.9,2.14962425]
[1729951751296,3.96144645,2466.1,2465.9,5.79887425]
[1729951751493,1.31527425,2466.1,2466.0,0.40594]
[1729951752198,3.96168751,2466.1,2466.0,0.40594]
[1729951752399,1.31527425,2466.1,2466.0,0.40594]
[1729951752700,3.96133861,2466.1,2466.0,0.40594]
[1729951752894,1.31527425,2466.1,2466.0,0.40594]
[1729951753699,3.96118122,2466.1,2466.0,1.72121425]
[1729951753901,1.31527425,2466.1,2466.0,1.72121425]
[1729951754496,3.96103035,2466.1,2466.0,1.72121425]
[1729951754886,1.31527425,2466.1,2466.0,1.72121425]
[1729951755492,1.31527425,2466.1,2466.0,0.40594]
[1729951757894,2.64520898,2466.1,2466.0,5.37047425]
[1729951758091,2.64520898,2466.2,2466.1,0.40592]
[1729951758303,2.64520898,2466.2,2466.1,1.72119425]
[1729951759504,3.96048323,2466.2,2466.1,1.72119425]
[1729951759697,4.39608323,2466.2,2466.1,1.72119425]
[1729951761297,4.39608323,2466.2,2466.0,1.31527425]
[1729951761595,2.14799425,2466.1,2466.0,1.72120425]
[1729951761794,1.74207425,2466.1,2466.0,1.72120425]
[1729951762999,4.38728323,2466.1,2466.0,1.72120425]
[1729951763502,4.79320323,2466.1,2466.0,0.40593]
[1729951763703,4.38728323,2466.1,2465.9,3.6362]
[1729951763898,4.36642323,2466.0,2465.9,4.04214]
[1729951764308,3.96048323,2466.0,2465.9,4.04214]
[1729951764802,4.36642323,2466.0,2465.9,4.04214]
[1729951765106,1.72121425,2466.0,2465.9,4.04214]
[1729951765602,1.31527425,2466.0,2465.9,4.04214]
[1729951765805,1.72121425,2466.0,2465.9,4.04214]
[1729951765999,0.40595,2465.9,2465.8,0.40596]
[1729951766304,0.40599,2465.8,2465.7,0.40598]
[1729951766508,0.40599,2465.7,2465.6,0.40599]
[1729951766696,3.47218607,2465.7,2465.6,0.40599]
[1729951766896,0.82769,2465.7,2465.6,0.40599]
[1729951767102,3.47231645,2465.7,2465.6,0.40599]
[1729951767604,4.7875907,2465.7,2465.6,0.40599]
[1729951768005,0.40601,2465.6,2465.5,0.40601]
[1729951768200,2.14468425,2465.6,2465.5,0.40601]
[1729951768401,4.78787367,2465.6,2465.5,0.40601]
[1729951770207,2.14468425,2465.6,2465.5,0.40601]
[1729951770611,4.78787367,2465.6,2465.5,0.40601]
[1729951771417,0.40602,2465.5,2465.4,3.61382]
[1729951771709,1.72129425,2465.5,2465.4,3.61382]
[1729951772417,0.40607,2465.3,2465.2,0.40606]
[1729951772602,1.72134425,2465.3,2465.2,0.40606]
[1729951773009,2.57514425,2465.3,2465.2,0.40606]
[1729951774610,0.8538,2465.3,2465.2,1.72133425]
[1729951774815,3.04918942,2465.7,2465.2,6.38644425]
[1729951775114,1.31527425,2465.6,2465.5,0.40601]
[1729951776607,0.85599,2465.7,2465.5,1.31527425]
[1729951776809,6.71738942,2465.8,2465.7,0.40599]
[1729951776810,3.6453,2465.8,2465.7,0.40599]
[1729951777012,4.96057425,2465.8,2465.7,0.40599]
[1729951777216,5.41007425,2465.8,2465.7,0.81459]
[1729951778913,5.81604425,2465.8,2465.7,0.81459]
[1729951779709,5.41007425,2465.8,2465.7,0.81459]
[1729951780017,5.81604425,2465.8,2465.7,0.81459]
[1729951780219,0.406,2465.7,2465.6,0.40599]
[1729951780414,1.72127425,2465.7,2465.6,0.40599]
[1729951781316,6.6865485,2465.7,2465.1,3.2078]
[1729951781514,1.31527425,2465.3,2465.1,1.74677425]
[1729951781718,1.72134425,2465.2,2464.8,4.52307425]
[1729951781919,1.31527425,2465.0,2464.9,0.4061]
[1729951782114,1.31527425,2465.1,2464.9,1.31527425]
[1729951782314,1.31527425,2465.1,2465.0,0.4061]
[1729951782713,1.72136425,2465.1,2465.0,0.4061]
[1729951783221,1.31527425,2465.1,2465.0,0.4061]
[1729951784915,1.72136425,2465.1,2465.0,0.4061]
[1729951785319,5.37207425,2465.1,2464.8,0.40613]
[1729951785528,1.31527425,2464.9,2464.8,0.40613]
[1729951785716,1.31527425,2465.0,2464.8,1.72140425]
[1729951785912,1.31527425,2465.0,2464.9,1.72139425]
[1729951786425,4.47848,2465.2,2464.9,1.72139425]
[1729951786426,3.6489,2465.2,2465.1,0.40609]
[1729951786613,4.96417425,2465.2,2465.1,0.40609]
[1729951787625,1.75637425,2465.2,2465.1,0.40609]
[1729951789626,2.16244425,2465.2,2465.1,0.40609]
[1729951790325,1.75637425,2465.2,2465.1,0.40609]
[1729951791720,1.75637425,2465.2,2465.1,0.85069]
[1729951791927,2.16244425,2465.2,2465.1,0.85069]
[1729951793028,2.16244425,2465.2,2465.0,0.882]
[1729951793228,0.84717,2465.2,2465.1,0.40609]
[1729951794230,2.16244425,2465.2,2465.1,0.40609]
[1729951795020,1.75637425,2465.2,2465.0,0.882]
[1729951795220,1.72136425,2465.1,2465.0,1.28809]
[1729951796021,0.84717,2465.2,2465.1,0.40609]
[1729951796231,2.16244425,2465.2,2465.1,0.40609]
[1729951796621,1.75637425,2465.2,2465.1,0.40609]
[1729951797829,2.16244425,2465.2,2465.1,0.40609]
[1729951798624,0.40609,2465.1,2465.0,1.2881]
[1729951798825,1.72136425,2465.1,2465.0,1.2881]
[1729951799934,2.12956425,2465.1,2465.0,1.2881]
[1729951800433,1.72347425,2465.1,2464.8,0.4383]
[1729951800729,5.8383485,2464.9,2464.4,1.06144036]
[1729951800932,1.31527425,2464.5,2464.4,1.89794036]
[1729951801138,3.2078,2464.9,2464.4,2.80701461]
[1729951801436,3.64978016,2465.6,2465.1,0.40609]
[1729951801437,3.61388,2465.2,2465.1,0.40609]
[1729951801734,0.4061,2465.0,2464.9,1.67452]
[1729951802038,1.31527425,2465.0,2464.9,1.67452]
[1729951803230,3.2078,2465.2,2464.9,2.58367425]
[1729951803533,4.52307425,2465.2,2465.1,0.40609]
[1729951803733,3.2078,2465.2,2465.1,5.77816425]
[1729951803939,1.75757425,2465.7,2465.6,0.406]
[1729951804239,1.72126425,2465.7,2465.6,0.406]
[1729951804536,0.40603,2465.5,2465.3,0.40604]
[1729951804832,0.40603,2465.5,2465.0,1.01525]
[1729951804833,0.40605,2465.3,2465.2,0.83406]
[1729951805030,1.72132425,2465.3,2465.2,0.428]
[1729951805235,2.16962425,2465.3,2465.2,0.428]
[1729951805936,0.40607,2465.2,2465.0,1.31527425]
[1729951806233,1.31527425,2465.1,2465.0,2.14937425]
[1729951806935,1.31527425,2465.1,2465.0,0.4061]
[1729951807132,1.31527425,2465.1,2465.0,1.72137425]
[1729951807637,1.76357425,2465.3,2465.2,0.40607]
[1729951807841,1.76357425,2465.3,2465.2,1.72134425]
[1729951808343,1.31527425,2465.3,2465.2,1.72134425]
[1729951808532,1.31527425,2465.4,2465.3,0.40605]
[1729951808838,1.73187425,2465.7,2465.3,6.22267425]
[1729951809039,1.31527425,2465.6,2465.5,0.40602]
[1729951809437,0.4117,2465.8,2465.7,0.40599]
[1729951809638,1.31527425,2465.9,2465.7,1.31527425]
[1729951809844,0.40595,2465.9,2465.8,0.8514]
[1729951810039,1.72122425,2465.9,2465.8,0.8514]
[1729951810238,0.40595,2465.9,2465.8,0.8514]
[1729951810539,0.40595,2465.9,2465.8,1.25737]
[1729951810931,0.4117,2466.0,2465.9,0.40595]
[1729951811346,0.4166,2466.1,2465.8,0.8514]
[1729951811535,0.4166,2466.1,2466.0,0.40594]
[1729951811932,3.6559,2466.2,2466.1,0.40592]
[1729951812138,4.06182,2466.2,2465.8,0.8514]
[1729951812343,4.06181,2466.2,2466.1,0.40592]
[1729951812840,3.6559,2466.2,2466.1,0.40592]
[1729951814141,0.4483,2466.5,2466.4,0.40587]
[1729951814346,3.2078,2466.6,2466.1,1.01478]
[1729951814536,3.2078,2466.6,2466.5,0.40586]
[1729951816542,3.2078,2466.6,2466.5,4.46026]
[1729951816748,3.2078,2466.9,2466.6,0.40584]
[1729951816939,0.8795,2467.0,2466.9,0.40579]
[1729951817246,3.2078,2467.3,2466.6,1.0146]
[1729951817247,3.2078,2467.3,2466.6,2.85199012]
[1729951817446,0.40576,2467.1,2466.6,2.85199012]
[1729951817643,3.6422,2467.3,2467.2,0.40574]
[1729951817944,3.6422,2467.3,2466.7,1.01454]
[1729951818240,3.6422,2467.3,2466.8,0.8691]
[1729951818446,0.40574,2467.2,2467.0,0.40576]
[1729951818661,3.6422,2467.3,2466.9,0.4129]
[1729951818838,4.04793,2467.3,2467.1,0.40575]
[1729951819236,3.6422,2467.3,2467.2,0.40574]
[1729951819638,3.2078,2467.3,2467.2,0.40574]
[1729951821051,3.2078,2467.3,2466.9,0.4129]
[1729951821248,0.40575,2467.2,2467.0,0.40577]
[1729951821442,0.40575,2467.2,2466.9,0.4129]
[1729951821443,0.4437,2467.2,2466.9,0.4129]
[1729951821741,0.40577,2467.1,2466.9,0.81868]
[1729951821944,0.40577,2467.1,2466.8,1.2749]
[1729951822244,0.40577,2467.0,2466.8,1.2749]
[1729951822449,0.40576,2467.1,2466.9,0.40579]
[1729951822743,0.4437,2467.2,2466.9,0.40579]
[1729951822946,0.40577,2467.1,2466.9,0.40579]
[1729951823248,0.40577,2467.1,2466.8,0.84959]
[1729951823450,0.4201,2467.0,2466.8,0.4438]
[1729951823640,0.4201,2467.0,2466.9,0.40579]
[1729951824649,0.82587,2467.0,2466.8,0.8496]
[1729951825544,0.4201,2467.0,2466.8,0.8496]
[1729951825743,0.82588,2467.0,2466.8,0.8496]
[1729951826146,0.82588,2467.0,2466.8,0.4058]
[1729951827243,0.82588,2467.0,2466.7,0.40582]
[1729951827244,0.4058,2466.9,2466.7,0.40582]
[1729951827639,0.4422,2466.8,2466.7,0.40582]
[1729951831742,3.6279,2467.0,2466.7,4.0536]
[1729951831941,0.4201,2467.0,2466.9,0.40579]
[1729951833048,0.4516,2467.1,2467.0,0.40577]
[1729951834767,0.85736,2467.1,2467.0,0.40577]
[1729951837648,0.85736,2467.1,2466.6,4.70657012]
[1729951837649,0.4516,2467.1,2466.6,4.70657012]
[1729951838354,0.85736,2467.1,2467.0,0.40577]
[1729951839647,0.4516,2467.1,2467.0,0.40577]
[1729951839952,0.85736,2467.1,2467.0,0.40577]
[1729951840149,0.40578,2467.0,2466.9,0.40578]
[1729951840358,0.85737,2467.1,2467.0,0.40577]
[1729951842749,0.85737,2467.1,2466.6,4.70657012]
[1729951842750,0.40578,2467.0,2466.9,0.40577]
[1729951843059,0.40578,2467.0,2466.6,4.70657012]
[1729951843060,0.4516,2467.1,2466.6,0.84]
[1729951843253,3.6136,2466.9,2466.8,0.4058]
[1729951843453,3.2078,2466.9,2466.6,0.84]
[1729951843750,0.84082,2466.8,2466.7,0.40582]
[1729951844148,0.435,2466.8,2466.7,0.40582]
[1729951844356,0.435,2466.8,2466.7,1.7216505]
[1729951844858,0.40579,2466.9,2466.8,0.4058]
[1729951845151,0.40579,2466.9,2466.8,1.7216305]
[1729951846350,0.40579,2466.9,2466.8,0.4058]
[1729951846750,0.85129,2467.0,2466.7,0.40582]
[1729951846953,0.4455,2467.0,2466.6,0.84]
[1729951847155,0.40582,2466.7,2466.6,0.81453]
[1729951848252,0.40582,2466.7,2466.6,0.4087]
[1729951848452,0.40584,2466.6,2466.3,0.40587]
[1729951848655,0.40584,2466.6,2466.0,2.85073184]
[1729951848656,4.45874,2466.6,2466.5,0.40586]
[1729951848859,0.40586,2466.5,2466.4,0.40586]
[1729951849347,4.45875,2466.6,2466.5,0.40586]
[1729951849549,3.2078,2467.1,2466.5,7.31099184]
[1729951849748,3.2078,2467.1,2466.8,0.4058]
[1729951849951,3.2078,2467.1,2466.6,1.3051]
[1729951850151,0.40582,2466.8,2466.7,0.40582]
[1729951852251,0.40579,2466.9,2466.8,0.40579]
[1729951853559,0.4132,2467.0,2466.6,0.8934]
[1729951853753,0.4058,2466.9,2466.8,0.40579]
[1729951854659,0.4132,2467.0,2466.6,0.8934]
[1729951854854,0.40581,2466.8,2466.7,0.40581]
[1729951855865,0.4058,2466.9,2466.8,0.4058]
[1729951858258,0.40582,2466.8,2466.7,0.40581]
[1729951858653,4.0536,2466.8,2466.6,0.8934]
[1729951858849,0.4184,2466.7,2466.6,1.29922]
[1729951860161,0.82422,2466.7,2466.6,1.29922]
[1729951860463,0.4184,2466.7,2466.5,0.40585]
[1729951860657,0.40584,2466.6,2466.5,0.40585]
[1729951860960,3.6262,2466.7,2466.3,0.8323]
[1729951861265,0.40584,2466.6,2466.5,0.40584]
[1729951862558,0.82423,2466.7,2466.6,0.40584]
[1729951863357,4.03208,2466.7,2466.6,0.40588]
[1729951863765,3.6262,2466.7,2466.6,0.40588]
[1729951864271,4.03206,2466.7,2466.6,0.40588]
[1729951864469,4.03206,2466.7,2466.3,0.8323]
[1729951864762,0.40588,2466.6,2466.4,0.4059]
[1729951865164,0.40588,2466.6,2466.5,0.40589]
[1729951865556,0.4059,2466.5,2466.4,0.4059]
[1729951865852,0.8246,2466.5,2466.4,0.4059]
[1729951866288,0.4187,2466.5,2466.4,0.4059]
[1729951869565,0.4187,2466.5,2466.2,0.4231]
[1729951869757,3.2078,2466.3,2466.2,0.82903]
[1729951869956,3.2078,2466.3,2466.0,0.8331]
[1729951869957,0.40594,2466.2,2466.1,0.40594]
[1729951870159,3.2078,2466.3,2466.0,0.8331]
[1729951870374,0.4271,2466.1,2466.0,2.5551492]
[1729951871670,0.8371,2466.1,2465.9,1.7455692]
[1729951871859,1.24307,2466.1,2466.0,0.40598]
[1729951872061,4.0449,2466.1,2466.0,1.7220492]
[1729951872261,4.45086,2466.1,2466.0,0.40598]
[1729951873762,4.0449,2466.1,2466.0,0.40598]
[1729951875061,4.45086,2466.1,2466.0,0.40598]
[1729951877071,4.0449,2466.1,2466.0,0.40598]
[1729951877271,4.45086,2466.1,2466.0,0.40598]
[1729951878766,1.24306,2466.1,2466.0,0.40598]
[1729951879365,4.0449,2466.1,2466.0,0.40598]
[1729951879869,4.45086,2466.1,2466.0,0.40598]
[1729951880063,4.0449,2466.1,2466.0,0.40598]
[1729951880470,4.45086,2466.1,2466.0,0.40598]
[1729951883173,0.40598,2466.0,2465.9,0.83549]
[1729951883469,0.40601,2465.9,2465.8,0.406]
[1729951883863,0.40601,2465.8,2465.7,1.25321]
[1729951884065,0.40601,2465.8,2465.6,0.4241]
[1729951884066,0.40603,2465.7,2465.6,0.4241]
[1729951884370,0.40606,2465.5,2465.4,0.40606]
[1729951884564,0.40606,2465.5,2465.4,0.83016]
[1729951884565,3.61386,2465.5,2465.4,0.83016]
[1729951884866,3.2078,2465.5,2465.4,0.83016]
[1729951885261,4.06406,2465.5,2465.4,0.83016]
[1729951885465,3.658,2465.5,2465.4,0.83016]
[1729951887360,3.658,2465.5,2465.3,0.84388]
[1729951887361,7.714,2465.5,2465.3,0.84388]
[1729951887562,0.40608,2465.4,2465.3,0.40609]
[1729951888367,4.06407,2465.5,2465.3,0.40609]
[1729951888671,4.06407,2465.5,2465.2,0.418]
[1729951888863,4.06407,2465.5,2465.3,0.40609]
[1729951889564,4.06407,2465.5,2465.4,0.40608]
[1729951889775,0.40608,2465.4,2465.3,0.40608]
[1729951890266,4.06407,2465.5,2465.3,0.40608]
[1729951891374,0.40608,2465.4,2465.3,0.40608]
[1729951893272,3.61388,2465.4,2465.3,0.40608]
[1729951893774,0.40608,2465.4,2465.3,0.40608]
[1729951893971,3.61388,2465.4,2465.3,0.40608]
[1729951894479,4.93051279,2465.4,2465.3,0.40608]
[1729951895165,3.2078,2465.4,2465.3,1.72271279]
[1729951896668,4.52443279,2465.4,2465.3,0.40608]
[1729951896876,4.93051279,2465.4,2465.3,0.40609]
[1729951898680,4.52443279,2465.4,2465.3,1.72272279]
[1729951899082,4.93051279,2465.4,2465.3,1.72272279]
[1729951899287,4.52443279,2465.4,2465.3,1.72272279]
[1729951899780,4.93051279,2465.4,2465.3,1.72272279]
[1729951900372,4.52443279,2465.4,2465.3,1.72272279]
[1729951901474,3.2078,2465.4,2465.3,1.72272279]
[1729951902878,5.38070279,2465.5,2465.3,1.31663279]
[1729951903079,5.38070279,2465.5,2465.4,0.40608]
[1729951903992,0.40608,2465.4,2465.3,1.72271279]
[1729951904287,5.38069279,2465.5,2465.4,0.40608]
[1729951904989,4.97463279,2465.5,2465.4,0.40608]
[1729951905175,5.38069279,2465.5,2465.4,0.40608]
[1729951906181,3.2078,2465.5,2465.4,1.72271279]
[1729951906380,3.2078,2465.5,2465.4,0.40608]
[1729951906582,3.2078,2465.5,2465.4,1.72271279]
[1729951910183,3.61386,2465.5,2465.4,1.72271279]
[1729951910582,4.06496,2465.5,2465.4,1.72271279]
[1729951910879,4.06496,2465.5,2465.4,0.40608]
[1729951911275,5.38943279,2465.5,2465.2,0.418]
[1729951911582,5.38943279,2465.5,2465.2,0.82409]
[1729951911583,1.31663279,2465.3,2465.2,0.82409]
[1729951911779,1.72272279,2465.3,2465.2,0.82409]
[1729951912278,0.40611,2465.2,2465.1,0.40612]
[1729951912482,4.96503279,2465.2,2465.1,0.40612]
[1729951912786,4.96503279,2465.2,2465.1,1.72275279]
[1729951912787,3.2078,2465.2,2465.1,1.72275279]
[1729951913087,3.2078,2465.3,2465.1,1.72275279]
[1729951913385,1.73053279,2465.5,2465.4,0.40608]
[1729951913573,4.52443279,2465.6,2465.3,1.31663279]
[1729951913774,3.2078,2465.6,2465.5,1.72269279]
[1729951913979,4.52443279,2465.6,2465.5,1.72269279]
[1729951914389,4.52443279,2465.6,2465.5,0.40606]
[1729951914980,4.93047279,2465.6,2465.5,0.40606]
[1729951915181,4.52443279,2465.6,2465.5,0.40606]
[1729951916084,3.2078,2465.6,2465.5,0.40606]
[1729951916287,3.2078,2465.6,2465.5,1.72269279]
[1729951917081,3.2078,2465.6,2465.5,5.77869279]
[1729951917381,2.53,2465.9,2465.8,0.40601]
[1729951917582,5.84844542,2466.2,2465.8,1.31663279]
[1729951917788,4.52443279,2466.2,2466.1,0.40596]
[1729951917988,1.31663279,2466.2,2466.1,0.40596]
[1729951918183,1.31663279,2466.3,2466.1,1.31663279]
[1729951918489,1.2922,2466.4,2466.3,0.40593]
[1729951918993,3.01474279,2466.4,2466.3,0.40593]
[1729951920096,2.60883279,2466.4,2466.3,0.40593]
[1729951920295,3.01474279,2466.4,2466.3,0.40593]
[1729951921589,2.60883279,2466.4,2466.3,0.40593]
[1729951921789,6.25435542,2466.5,2466.3,0.40593]
[1729951921790,4.52443279,2466.5,2466.3,1.31663279]
[1729951921987,3.2078,2466.5,2466.4,1.72254279]
[1729951922189,4.52443279,2466.5,2466.4,0.40591]
[1729951923395,1.31663279,2466.5,2466.4,0.40591]
[1729951923583,4.52443279,2466.5,2466.4,0.40591]
[1729951928693,4.52443279,2466.5,2466.1,2.15643279]
[1729951928893,1.72256279,2466.3,2466.2,0.40594]
[1729951929095,1.31663279,2466.3,2466.2,0.40594]
[1729951929298,1.75673279,2466.3,2466.2,0.40594]
[1729951930090,0.4401,2466.3,2466.2,1.72257279]
[1729951930802,2.60456279,2466.3,2466.2,0.40594]
[1729951931310,2.19863279,2466.3,2466.2,0.40594]
[1729951931606,0.882,2466.3,2466.2,1.72257279]